bitfinex-derivatives/quotes_BTCF0:USTF0_20251214
["timestamp","ask_amount","ask_price","bid_price","bid_amount"]
[1765711218206,0.22081,89687.0,89686.0,0.18516683]
[1765711218802,0.10521,89687.0,89686.0,0.18516683]
[1765711219008,0.28479,89691.0,89690.0,0.17094]
[1765711220311,0.16919,89691.0,89690.0,0.17094]
[1765711220511,0.06398,89691.0,89690.0,0.17094]
[1765711220711,0.28479,89691.0,89690.0,0.08547]
[1765711220915,0.28479,89691.0,89690.0,0.1702]
[1765711222108,0.06398,89691.0,89690.0,0.1702]
[1765711222315,0.28479,89698.0,89697.0,0.16835]
[1765711223608,0.28579,89698.0,89697.0,0.16835]
[1765711224005,0.06498,89698.0,89697.0,0.16835]
[1765711224214,0.06598,89698.0,89697.0,0.16835]
[1765711225017,0.17119,89698.0,89697.0,0.16835]
[1765711225221,0.28679,89698.0,89697.0,0.16835]
[1765711227919,0.002,89698.0,89697.0,0.16835]
[1765711240830,0.1102,89698.0,89697.0,0.16835]
[1765711241120,0.21377,89698.0,89697.0,0.16835]
[1765711241715,0.002,89698.0,89697.0,0.16835]
[1765711246233,0.002,89698.0,89697.0,0.52915]
[1765711247930,0.1102,89698.0,89697.0,0.52915]
[1765711248233,0.21377,89698.0,89697.0,0.52915]
[1765711248427,0.1102,89698.0,89697.0,0.52915]
[1765711248731,0.002,89698.0,89697.0,0.52915]
[1765711249828,0.21377,89698.0,89697.0,0.52915]
[1765711251123,0.1102,89698.0,89697.0,0.52915]
[1765711251325,0.002,89698.0,89697.0,0.52915]
[1765711254431,0.00016723,89705.0,89704.0,0.14564]
[1765711254625,0.27534,89720.0,89719.0,0.14564]
[1765711254824,0.27534,89720.0,89719.0,0.50644]
[1765711255227,0.06357,89720.0,89719.0,0.50644]
[1765711255423,0.17177,89730.0,89729.0,0.1457]
[1765711255937,0.27534,89730.0,89729.0,0.1457]
[1765711257037,0.27534,89730.0,89729.0,0.1467]
[1765711258532,0.06357,89730.0,89729.0,0.1487]
[1765711258734,0.16694,89735.0,89734.0,0.14378]
[1765711258935,0.27665,89735.0,89734.0,0.14378]
[1765711259436,0.16694,89735.0,89734.0,0.14378]
[1765711259834,0.16694,89735.0,89734.0,0.14478]
[1765711260034,0.06357,89735.0,89734.0,0.14478]
[1765711260238,0.06357,89735.0,89734.0,0.14578]
[1765711260434,0.06357,89735.0,89734.0,0.14478]
[1765711260639,0.16694,89735.0,89734.0,0.14578]
[1765711260839,0.27665,89735.0,89734.0,0.14578]
[1765711261036,0.27665,89735.0,89734.0,0.14478]
[1765711261341,0.27665,89735.0,89734.0,0.14578]
[1765711261527,0.00016723,89738.0,89734.0,0.07389]
[1765711261730,0.21324723,89738.0,89737.0,0.50262]
[1765711261931,0.10353723,89738.0,89737.0,1.20102]
[1765711263343,0.10353723,89738.0,89737.0,1.20302]
[1765711263538,0.21324723,89738.0,89737.0,1.20402]
[1765711263841,0.21324723,89738.0,89737.0,1.20202]
[1765711264034,0.21424723,89738.0,89737.0,1.20202]
[1765711264937,0.21424723,89738.0,89737.0,1.20102]
[1765711265133,0.21424723,89738.0,89737.0,1.20202]
[1765711265531,0.21324723,89738.0,89737.0,1.20402]
[1765711266741,0.21324723,89738.0,89737.0,1.20202]
[1765711266944,0.21324723,89738.0,89737.0,1.20402]
[1765711269239,0.21324723,89738.0,89737.0,1.20202]
[1765711269544,0.21324723,89738.0,89737.0,1.20402]
[1765711269843,0.21324723,89738.0,89737.0,1.20202]
[1765711270037,0.21324723,89738.0,89737.0,1.20402]
[1765711272350,0.21324723,89738.0,89737.0,1.29127816]
[1765711273249,0.21324723,89738.0,89737.0,0.45005816]
[1765711273549,0.21524723,89738.0,89737.0,1.14825816]
[1765711273845,0.21524723,89738.0,89737.0,0.3618]
[1765711274545,0.21524723,89738.0,89737.0,0.001]
[1765711274750,0.21308,89729.0,89728.0,0.3608]
[1765711276248,0.21408,89729.0,89728.0,0.3608]
[1765711276752,0.21808,89729.0,89728.0,0.3608]
[1765711276949,0.21308,89722.0,89721.0,0.13280723]
[1765711277138,0.21308,89722.0,89721.0,0.00016723]
[1765711277350,0.21308,89709.0,89708.0,0.3608]
[1765711277640,0.21308,89706.0,89705.0,0.21267]
[1765711277852,0.27846,89712.0,89711.0,0.21267]
[1765711279050,0.28346,89712.0,89711.0,0.21267]
[1765711279248,0.28746,89712.0,89711.0,0.21267]
[1765711280249,0.005,89712.0,89711.0,0.21267]
[1765711280546,0.009,89712.0,89711.0,0.21267]
[1765711281148,0.009,89712.0,89711.0,0.57347]
[1765711281852,0.005,89712.0,89711.0,0.57347]
[1765711282053,0.009,89712.0,89711.0,0.57347]
[1765711282453,0.008,89712.0,89711.0,0.57347]
[1765711288962,0.004,89712.0,89711.0,0.57347]
[1765711289163,0.008,89712.0,89711.0,0.57347]
[1765711290163,0.12083,89712.0,89711.0,0.57347]
[1765711290365,0.22864,89712.0,89711.0,0.57347]
[1765711290966,0.008,89712.0,89711.0,0.57347]
[1765711293260,0.004,89712.0,89711.0,0.57347]
[1765711293465,0.008,89712.0,89711.0,0.57347]
[1765711293659,0.00699999,89712.0,89711.0,0.57347]
[1765711294760,0.004,89712.0,89711.0,0.57347]
[1765711294966,0.006,89712.0,89711.0,0.57347]
[1765711295360,0.00016723,89720.0,89719.0,0.22639]
[1765711295568,0.00016723,89720.0,89719.0,1.28539]
[1765711297970,0.00016723,89720.0,89719.0,1.28639]
[1765711298361,0.22080723,89720.0,89719.0,1.28639]
[1765711298562,0.28540723,89720.0,89719.0,1.28639]
[1765711298758,0.22080723,89720.0,89719.0,0.92459]
[1765711298959,0.22080723,89720.0,89719.0,0.92559]
[1765711299859,0.22080723,89720.0,89719.0,0.22639]
[1765711300055,0.22080723,89720.0,89719.0,0.22739]
[1765711300268,0.22080723,89720.0,89719.0,0.66831]
[1765711300570,0.22080723,89720.0,89719.0,0.55697]
[1765711301163,0.22080723,89720.0,89719.0,0.66931]
[1765711301365,0.22080723,89720.0,89719.0,0.11705]
[1765711301672,0.22080723,89720.0,89719.0,0.11605]
[1765711301872,0.22080723,89720.0,89719.0,0.22739]
[1765711302567,0.00216723,89720.0,89719.0,0.22639]
[1765711302871,0.11499723,89720.0,89719.0,0.22639]
[1765711305064,0.22080723,89720.0,89719.0,0.22639]
[1765711305265,0.22064,89717.0,89716.0,0.80385]
[1765711305675,0.22064,89717.0,89716.0,0.91519]
[1765711306874,0.22064,89717.0,89716.0,0.91619]
[1765711307275,0.22064,89717.0,89716.0,0.91719]
[1765711307773,0.22064,89717.0,89716.0,0.91619]
[1765711308366,0.22064,89717.0,89716.0,0.91519]
[1765711309864,0.22064,89717.0,89716.0,0.91619]
[1765711310473,0.11299723,89720.0,89719.0,0.22639]
[1765711310666,0.00016723,89720.0,89719.0,0.58719]
[1765711310881,0.00016723,89720.0,89719.0,0.22639]
[1765711311070,0.11299723,89720.0,89719.0,0.22639]
[1765711311572,0.22080723,89720.0,89719.0,0.22639]
[1765711312371,0.22180723,89720.0,89719.0,0.22639]
[1765711313273,0.22180723,89720.0,89719.0,0.11505]
[1765711313781,0.22064,89717.0,89716.0,0.92447]
[1765711314080,0.22180723,89720.0,89719.0,0.22639]
[1765711315578,0.22280723,89720.0,89719.0,0.22639]
[1765711316380,0.22080723,89720.0,89719.0,0.22639]
[1765711316680,0.22180723,89720.0,89719.0,0.22639]
[1765711320180,0.29416,89718.0,89717.0,0.69808]
[1765711320983,0.29416,89718.0,89717.0,0.80974]
[1765711321983,0.29516,89718.0,89717.0,0.80974]
[1765711322576,0.11252,89712.0,89711.0,0.47246]
[1765711322785,0.22538,89697.0,89696.0,0.22557]
[1765711322986,0.22538,89697.0,89694.0,0.3608]
[1765711322987,0.22538,89695.0,89694.0,0.3608]
[1765711323183,0.22538,89695.0,89694.0,0.47246]
[1765711323389,0.22538,89695.0,89694.0,0.3608]
[1765711323582,0.22538,89695.0,89694.0,0.47246]
[1765711324184,0.22538,89695.0,89694.0,0.58637]
[1765711325383,0.22638,89695.0,89694.0,0.58637]
[1765711327507,0.22638,89695.0,89694.0,0.22557]
[1765711328503,0.22538,89690.0,89689.0,0.58637]
[1765711332109,0.22538,89690.0,89689.0,0.22557]
[1765711337416,0.22538,89690.0,89684.0,0.69804]
[1765711337417,0.22538,89687.0,89686.0,0.23894366]
[1765711337610,0.22538,89687.0,89686.0,0.22557]
[1765711338216,0.22538,89687.0,89686.0,0.2383254]
[1765711338909,0.22538,89687.0,89686.0,0.22557]
[1765711339713,0.22538,89684.0,89683.0,0.23794878]
[1765711340828,0.22538,89684.0,89683.0,0.01237878]
[1765711341126,0.22538,89684.0,89683.0,0.22657]
[1765711341508,0.22538,89684.0,89683.0,0.23935007]
[1765711342022,0.22538,89684.0,89683.0,0.24035007]
[1765711345927,0.22538,89684.0,89683.0,0.22757]
[1765711346319,0.22538,89684.0,89683.0,0.11366]
[1765711346820,0.22538,89684.0,89683.0,0.002]
[1765711347413,0.21506,89673.0,89672.0,8.688e-05]
[1765711347609,0.21506,89667.0,89652.0,0.00568137]
[1765711347825,0.06364,89670.0,89663.0,0.21633]
[1765711347826,0.2787,89664.0,89663.0,0.21633]
[1765711348126,0.21506,89664.0,89663.0,0.21633]
[1765711348319,0.21506,89664.0,89663.0,0.22892625]
[1765711348624,0.27878688,89664.0,89663.0,0.22892625]
[1765711349216,0.21506,89659.0,89658.0,0.57713]
[1765711349825,0.21506,89659.0,89658.0,0.2289431]
[1765711350018,0.21514688,89664.0,89663.0,0.21633]
[1765711350216,8.688e-05,89664.0,89663.0,0.21633]
[1765711350414,0.21514688,89664.0,89663.0,0.21633]
[1765711350615,0.11242688,89664.0,89663.0,0.21633]
[1765711350809,8.688e-05,89664.0,89663.0,0.21633]
[1765711351422,8.688e-05,89664.0,89663.0,0.27687]
[1765711351824,0.00016723,89675.0,89674.0,0.21633]
[1765711352423,0.11250723,89675.0,89674.0,0.21633]
[1765711352625,0.21522723,89675.0,89674.0,0.21633]
[1765711353425,0.21522723,89675.0,89674.0,0.21733]
[1765711354013,0.21522723,89675.0,89674.0,0.002]
[1765711354219,0.21522723,89675.0,89674.0,0.10881]
[1765711354522,0.00016723,89675.0,89674.0,0.21833]
[1765711354728,0.19417481,89746.0,89674.0,0.21833]
[1765711354729,0.06364,89705.0,89704.0,0.14627]
[1765711354923,0.3608,89709.0,89696.0,0.3608]
[1765711355128,0.06364,89712.0,89711.0,0.14627]
[1765711355327,0.06364,89719.0,89718.0,0.14621]
[1765711355926,0.2787,89719.0,89718.0,0.14621]
[1765711356522,0.06364,89719.0,89718.0,0.14621]
[1765711357119,0.06364,89719.0,89710.0,0.36096723]
[1765711357120,0.3608,89725.0,89724.0,0.20783]
[1765711357324,0.21522723,89727.0,89726.0,0.20783]
[1765711358928,0.21622723,89727.0,89726.0,0.20783]
[1765711359643,0.21506,89711.0,89710.0,0.46434723]
[1765711359822,0.21506,89711.0,89710.0,0.20698723]
[1765711360024,0.06364,89712.0,89711.0,0.20682]
[1765711360337,0.2787,89712.0,89711.0,0.20682]
[1765711361217,0.47314,89719.0,89710.0,0.00016723]
[1765711361423,0.57586,89719.0,89718.0,0.20631]
[1765711362231,0.57686,89719.0,89718.0,0.20631]
[1765711362924,0.57786,89719.0,89718.0,0.20631]
[1765711363628,0.3628,89719.0,89718.0,0.20631]
[1765711363830,0.002,89719.0,89718.0,0.56711]
[1765711364223,0.005,89719.0,89718.0,0.56711]
[1765711364431,0.003,89719.0,89718.0,0.56711]
[1765711364632,0.005,89719.0,89718.0,0.56711]
[1765711364830,0.00016723,89727.0,89726.0,0.20527]
[1765711365236,0.00016723,89727.0,89726.0,0.56607]
[1765711365431,0.21522723,89727.0,89726.0,0.20527]
[1765711365919,0.06364,89712.0,89711.0,0.50228]
[1765711366120,0.2787,89720.0,89719.0,0.21186]
[1765711367030,0.2787,89712.0,89711.0,0.71861]
[1765711368422,0.2807,89712.0,89711.0,0.71861]
[1765711369930,0.2787,89712.0,89711.0,0.71961]
[1765711370835,0.21506,89711.0,89710.0,0.00016723]
[1765711371239,0.21506,89711.0,89710.0,0.10697723]
[1765711371840,0.21506,89711.0,89710.0,0.21649723]
[1765711373232,0.21606,89711.0,89710.0,0.21649723]
[1765711376136,0.21506,89711.0,89710.0,0.21649723]
[1765711376330,0.21806,89711.0,89710.0,0.21649723]
[1765711376941,0.21506,89711.0,89710.0,0.21649723]
[1765711377136,0.21506,89711.0,89710.0,0.22049723]
[1765711377641,0.11234,89711.0,89710.0,0.22049723]
[1765711378329,0.2266,89711.0,89710.0,0.22049723]
[1765711383050,0.5874,89711.0,89710.0,0.00416723]
[1765711383442,0.23277,89701.0,89700.0,0.3608]
[1765711383641,0.23277,89701.0,89700.0,0.60648]
[1765711383837,0.23277,89701.0,89700.0,0.619217]
[1765711384048,0.23277,89701.0,89700.0,0.60648]
[1765711385353,0.23277,89701.0,89700.0,0.61892496]
[1765711386045,0.23577,89701.0,89700.0,0.61892496]
[1765711387848,0.23577,89701.0,89700.0,0.60648]
[1765711388048,0.23577,89701.0,89700.0,0.48425]
[1765711388251,0.23577,89701.0,89700.0,0.3608]
[1765711389152,0.23577,89701.0,89700.0,0.60648]
[1765711397450,0.23577,89701.0,89700.0,0.24568]
[1765711398855,0.59657,89701.0,89700.0,0.24568]
[1765711419294,0.3638,89701.0,89700.0,0.24568]
[1765711419496,0.003,89701.0,89700.0,0.24568]
[1765711419686,0.00091312,89701.0,89700.0,0.24568]
[1765711420490,0.60395,89719.0,89718.0,0.22959]
[1765711420689,0.63289886,89719.0,89718.0,0.22959]
[1765711421288,0.60395,89719.0,89718.0,0.22959]
[1765711421889,0.3608,89719.0,89718.0,0.22959]
[1765711422698,0.3628,89719.0,89718.0,0.22959]
[1765711423194,0.48665,89719.0,89718.0,0.22959]
[1765711423594,0.004,89719.0,89718.0,0.22959]
[1765711423900,0.002,89719.0,89718.0,0.22959]
[1765711424096,0.004,89719.0,89718.0,0.22959]
[1765711424300,0.004,89719.0,89718.0,0.26533]
[1765711425493,0.002,89719.0,89718.0,0.26533]
[1765711426305,0.48281723,89727.0,89726.0,0.22959]
[1765711427297,0.36096723,89727.0,89726.0,0.22959]
[1765711427692,0.24331723,89727.0,89726.0,0.22959]
[1765711428101,0.24531723,89727.0,89726.0,0.22959]
[1765711428305,0.24531723,89727.0,89722.0,0.3608]
[1765711428306,0.24315,89723.0,89722.0,0.59039]
[1765711429398,0.00416723,89727.0,89726.0,0.22959]
[1765711429606,0.3118,89748.0,89747.0,0.22959]
[1765711429795,0.6726,89748.0,89747.0,0.22959]
[1765711430400,0.6726,89748.0,89726.0,0.3608]
[1765711430596,0.24331723,89746.0,89745.0,0.22959]
[1765711431900,0.24331723,89746.0,89728.0,0.00016723]
[1765711432102,0.60395,89739.0,89738.0,0.22959]
[1765711432295,0.24315,89739.0,89738.0,0.22959]
[1765711434102,0.24615,89739.0,89738.0,0.22959]
[1765711434694,0.24415,89739.0,89738.0,0.22959]
[1765711435494,0.24415,89739.0,89738.0,0.11224]
[1765711436498,0.2385,89729.0,89728.0,0.23517144]
[1765711437603,0.2395,89729.0,89728.0,0.23517144]
[1765711439308,0.2405,89729.0,89728.0,0.23517144]
[1765711440108,0.2385,89729.0,89728.0,0.23517144]
[1765711440300,0.2415,89729.0,89728.0,0.23517144]
[1765711440499,0.2415,89729.0,89728.0,0.00016723]
[1765711440701,0.6023,89729.0,89728.0,0.00016723]
[1765711441209,0.23852,89709.0,89708.0,0.59173]
[1765711441804,0.23852,89709.0,89708.0,0.23093]
[1765711442000,0.23852,89709.0,89708.0,0.24331542]
[1765711443496,0.23852,89709.0,89708.0,0.24431542]
[1765711444196,0.23852,89709.0,89708.0,0.24631542]
[1765711444406,0.23852,89709.0,89708.0,0.01838542]
[1765711444906,0.23852,89709.0,89708.0,0.24931542]
[1765711445212,0.23852,89709.0,89708.0,0.24831542]
[1765711446211,0.23852,89709.0,89708.0,0.24531542]
[1765711446415,0.23852,89709.0,89708.0,0.24831542]
[1765711447005,0.23852,89709.0,89708.0,0.24331542]
[1765711447920,0.30991,89700.0,89699.0,0.3608]
[1765711448214,0.23852,89695.0,89694.0,0.01208702]
[1765711448414,0.23852,89693.0,89692.0,0.59173]
[1765711450414,0.23852,89693.0,89692.0,0.60380745]
[1765711451008,0.23952,89693.0,89692.0,0.60380745]
[1765711455014,0.23952,89693.0,89692.0,0.24300745]
[1765711471938,0.23952,89693.0,89692.0,0.13234745]
[1765711472535,0.23952,89693.0,89692.0,0.24588745]
[1765711473624,0.23952,89693.0,89692.0,0.01207745]
[1765711473828,0.21907,89689.0,89688.0,9.443e-05]
[1765711474319,0.21907,89689.0,89688.0,0.1264611]
[1765711474519,0.21907,89689.0,89688.0,0.22796443]
[1765711475437,0.21907,89689.0,89688.0,0.24006962]
[1765711479236,0.29046,89694.0,89693.0,0.22787]
[1765711481235,0.00016723,89697.0,89693.0,0.22787]
[1765711481442,0.10926723,89697.0,89696.0,0.58867]
[1765711481644,0.21923723,89697.0,89696.0,0.22787]
[1765711482540,0.22023723,89697.0,89696.0,0.22787]
[1765711484237,0.21923723,89697.0,89696.0,0.22787]
[1765711484444,0.22123723,89697.0,89696.0,0.22787]
[1765711490338,0.22123723,89697.0,89696.0,0.11433]
[1765711490543,0.21907,89693.0,89692.0,0.58867]
[1765711490751,0.21907,89693.0,89692.0,0.3608]
[1765711491049,0.21907,89693.0,89692.0,0.47513]
[1765711491742,0.22007,89693.0,89692.0,0.58867]
[1765711492748,0.1101,89693.0,89692.0,0.58867]
[1765711493150,0.22007,89693.0,89692.0,0.58867]
[1765711493452,0.22007,89693.0,89692.0,0.22787]
[1765711493954,0.21907,89689.0,89688.0,0.24006962]
[1765711503080,0.21907,89689.0,89688.0,0.12652962]
[1765711503765,0.21907,89689.0,89688.0,0.23986962]
[1765711505175,0.21907,89689.0,89688.0,0.01219962]
[1765711505471,0.21907,89689.0,89688.0,0.23621962]
[1765711510592,0.06673,89695.0,89688.0,0.23621962]
[1765711510593,0.29484,89695.0,89694.0,0.22402]
[1765711512583,0.29584,89695.0,89694.0,0.22402]
[1765711526186,0.29584,89695.0,89694.0,0.11068]
[1765711526487,0.21844,89689.0,89688.0,0.22725962]
[1765711528487,0.21844,89689.0,89688.0,0.01219962]
[1765711528889,0.57924,89689.0,89688.0,0.01219962]
[1765711530487,0.57924,89689.0,89688.0,0.01210519]
[1765711530795,0.57924,89689.0,89675.0,0.10018133]
[1765711530796,0.21844,89676.0,89675.0,0.21506]
[1765711531600,0.21853443,89676.0,89675.0,0.22694618]
[1765711531991,0.21853443,89676.0,89675.0,0.22894618]
[1765711532599,0.21853443,89676.0,89675.0,0.22994618]
[1765711532996,0.21853443,89676.0,89675.0,0.12308618]
[1765711533399,0.21853443,89676.0,89675.0,0.22994618]
[1765711536393,0.28218443,89676.0,89675.0,0.22994618]
[1765711538393,9.443e-05,89676.0,89675.0,0.22994618]
[1765711538988,0.11072443,89676.0,89675.0,0.22994618]
[1765711539199,0.21853443,89676.0,89675.0,0.22994618]
[1765711539998,0.21853443,89676.0,89675.0,0.01488618]
[1765711540990,0.21853443,89676.0,89675.0,0.003]
[1765711541696,0.21844,89666.0,89665.0,0.3608]
[1765711542000,0.21844,89666.0,89665.0,0.469]
[1765711542495,0.21844,89666.0,89665.0,0.57586]
[1765711542895,0.21844,89666.0,89665.0,0.57886]
[1765711543504,0.21844,89666.0,89665.0,0.58186]
[1765711544598,0.21844,89666.0,89665.0,0.006]
[1765711544794,0.21844,89645.0,89644.0,1.8608]
[1765711545193,0.21844,89639.0,89638.0,0.21516682]
[1765711545702,0.21844,89639.0,89638.0,1.71516682]
[1765711546499,0.21844,89639.0,89638.0,1.71616682]
[1765711546908,0.21853443,89645.0,89644.0,0.21506]
[1765711548108,0.22153443,89645.0,89644.0,0.21506]
[1765711548707,0.21853443,89645.0,89644.0,0.21606]
[1765711549109,0.22153443,89645.0,89644.0,0.21606]
[1765711549701,0.22153443,89645.0,89644.0,0.1092]
[1765711549902,0.21853443,89645.0,89644.0,0.1092]
[1765711550101,0.21853443,89645.0,89644.0,0.1102]
[1765711550303,0.21853443,89645.0,89644.0,0.21706]
[1765711550908,9.443e-05,89645.0,89644.0,0.57786]
[1765711551905,9.443e-05,89645.0,89644.0,0.57686]
[1765711552106,9.443e-05,89645.0,89644.0,0.57886]
[1765711552809,9.443e-05,89645.0,89644.0,0.57986]
[1765711558513,0.23088443,89645.0,89644.0,0.57986]
[1765711558711,9.443e-05,89645.0,89644.0,0.57986]
[1765711567121,0.00609443,89645.0,89644.0,0.57586]
[1765711568721,0.00909443,89645.0,89644.0,0.57586]
[1765711572432,0.00709443,89645.0,89644.0,0.57586]
[1765711572918,0.00709443,89645.0,89644.0,1.27382]
[1765711573119,0.12215443,89645.0,89644.0,1.27382]
[1765711573319,0.23788443,89645.0,89644.0,1.27382]
[1765711573722,0.23588443,89645.0,89644.0,1.27382]
[1765711573921,0.00509443,89645.0,89644.0,1.27382]
[1765711574328,0.00209443,89645.0,89644.0,1.27382]
[1765711574524,0.00509443,89645.0,89644.0,1.27382]
[1765711576323,0.00309443,89645.0,89644.0,1.27382]
[1765711576522,0.00609443,89645.0,89644.0,1.27382]
[1765711577233,0.42445,89664.0,89652.0,0.22307]
[1765711577428,0.06574,89670.0,89652.0,1.28179]
[1765711578920,0.06574,89670.0,89652.0,1.28279]
[1765711579127,0.29653,89670.0,89669.0,0.22307]
[1765711581733,0.29653,89670.0,89669.0,0.22407]
[1765711583223,0.29653,89670.0,89669.0,0.001]
[1765711584032,0.23079,89666.0,89665.0,0.81169]
[1765711584235,0.59159,89666.0,89665.0,0.81169]
[1765711584425,0.59159,89666.0,89665.0,0.92099]
[1765711585833,0.59259,89666.0,89665.0,0.92099]
[1765711586727,0.59259,89666.0,89665.0,0.23338]
[1765711588832,0.59259,89666.0,89665.0,0.11628]
[1765711590736,0.22021,89662.0,89661.0,0.23354733]
[1765711591733,0.22021,89662.0,89661.0,0.00016733]
[1765711591929,0.22321,89662.0,89661.0,0.00016733]
[1765711601435,0.22321,89662.0,89661.0,0.11644733]
[1765711601640,0.22321,89662.0,89661.0,0.00016733]
[1765711603235,0.22021,89653.0,89652.0,0.69788]
[1765711603531,0.22021,89653.0,89652.0,0.81416]
[1765711603840,0.22021,89653.0,89652.0,0.93126]
[1765711604742,0.22021,89653.0,89652.0,0.23338]
[1765711606034,0.22221,89653.0,89652.0,0.23338]
[1765711609049,0.22021,89651.0,89650.0,0.59418]
[1765711610353,0.22121,89651.0,89650.0,0.59418]
[1765711612248,0.22121,89651.0,89650.0,0.23338]
[1765711620561,0.22143,89639.0,89637.0,0.69784]
[1765711621155,0.17962,89648.0,89647.0,0.21873]
[1765711621347,0.11364,89651.0,89650.0,0.21873]
[1765711621548,0.22243,89651.0,89650.0,0.21873]
[1765711622358,0.22143,89651.0,89650.0,0.21873]
[1765711623157,0.22243,89651.0,89650.0,0.21873]
[1765711628548,0.001,89651.0,89650.0,0.21873]
[1765711629660,0.11364,89651.0,89650.0,0.57953]
[1765711629876,0.22243,89651.0,89650.0,0.57953]
[1765711632081,0.22243,89651.0,89650.0,0.21873]
[1765711632284,0.22243,89651.0,89650.0,0.57953]
[1765711635688,0.11364,89651.0,89650.0,0.57953]
[1765711636187,0.22243,89651.0,89650.0,0.57953]
[1765711636376,0.001,89651.0,89650.0,0.57953]
[1765711640984,0.06698,89676.0,89658.0,0.21873]
[1765711641287,0.28841,89676.0,89675.0,0.21873]
[1765711641479,0.3167619,89676.0,89675.0,0.21873]
[1765711642692,0.6775619,89676.0,89675.0,0.10946]
[1765711642993,0.6775619,89676.0,89675.0,0.21873]
[1765711643894,0.6775619,89676.0,89675.0,0.21973]
[1765711644985,0.64921,89676.0,89675.0,0.21973]
[1765711646587,0.64921,89676.0,89675.0,0.001]
[1765711650497,0.28841,89676.0,89675.0,0.001]
[1765711650690,0.64921,89676.0,89675.0,0.001]
[1765711653996,0.28841,89676.0,89675.0,0.001]
[1765711654202,0.64921,89676.0,89675.0,0.11248]
[1765711654402,0.64921,89676.0,89675.0,0.001]
[1765711658299,0.64921,89676.0,89675.0,0.11248]
[1765711658494,0.64921,89676.0,89675.0,0.22754]
[1765711660102,0.64921,89676.0,89675.0,0.11248]
[1765711662208,0.64921,89676.0,89675.0,0.001]
[1765711662400,0.64921,89676.0,89675.0,0.11248]
[1765711663603,0.64921,89676.0,89675.0,0.001]
[1765711665304,0.6775181,89676.0,89675.0,0.001]
[1765711668112,0.6775181,89676.0,89675.0,0.22754]
[1765711668704,0.6775181,89676.0,89675.0,0.11248]
[1765711671614,0.6775181,89676.0,89675.0,0.001]
[1765711672018,0.6775181,89676.0,89675.0,0.11248]
[1765711673316,0.6775181,89676.0,89675.0,0.001]
[1765711675419,0.6775181,89676.0,89675.0,0.11248]
[1765711675719,0.6775181,89676.0,89675.0,0.001]
[1765711676728,0.6775181,89676.0,89675.0,0.23398]
[1765711676928,0.6775181,89676.0,89675.0,0.11781]
[1765711677123,0.6775181,89676.0,89675.0,0.23398]
[1765711679223,0.06856,89682.0,89675.0,0.23398]
[1765711679425,0.00016733,89684.0,89683.0,0.23298]
[1765711679821,0.22655733,89684.0,89683.0,0.23298]
[1765711680525,0.29509,89676.0,89675.0,0.001]
[1765711680722,0.65589,89676.0,89675.0,0.11781]
[1765711681230,0.65589,89676.0,89675.0,0.23298]
[1765711681430,0.29509,89668.0,89667.0,0.23314733]
[1765711683130,0.29709,89668.0,89667.0,0.23314733]
[1765711684430,0.65789,89668.0,89667.0,0.00016733]
[1765711685536,0.65789,89668.0,89667.0,0.00116733]
[1765711685731,0.65589,89668.0,89667.0,0.00116733]
[1765711685937,0.65589,89668.0,89667.0,0.00216733]
[1765711687535,0.65589,89668.0,89667.0,0.00116733]
[1765711687837,0.65589,89668.0,89667.0,0.00216733]
[1765711688035,0.65589,89668.0,89652.0,0.3608]
[1765711688337,0.29509,89645.0,89644.0,0.93046]
[1765711690839,0.29709,89645.0,89644.0,0.93046]
[1765711692536,0.22639,89643.0,89642.0,0.59378]
[1765711693032,0.22639,89643.0,89642.0,2.09378]
[1765711693940,0.22739,89643.0,89642.0,2.09378]
[1765711695447,0.58819,89643.0,89642.0,1.73298]
[1765711698047,0.22739,89643.0,89642.0,1.73298]
[1765711698242,0.58819,89643.0,89642.0,1.73298]
[1765711698642,0.22739,89643.0,89642.0,1.73298]
[1765711698937,0.58819,89643.0,89642.0,1.73298]
[1765711700644,0.22739,89643.0,89642.0,1.73298]
[1765711703748,0.22739,89643.0,89642.0,0.23298]
[1765711704548,0.22639,89622.0,89621.0,0.00784131]
[1765711705438,0.22649682,89622.0,89621.0,0.00784131]
[1765711706750,0.23149682,89622.0,89621.0,0.00784131]
[1765711707140,0.23149682,89622.0,89612.0,0.58018]
[1765711707141,0.0677,89615.0,89612.0,0.58018]
[1765711707347,0.22017,89613.0,89612.0,0.58018]
[1765711708251,0.22017,89613.0,89612.0,0.10822]
[1765711708753,0.22017,89603.0,89602.0,1.5]
[1765711712449,0.22017,89601.0,89600.0,0.24294889]
[1765711713049,0.22017,89601.0,89600.0,1.74294889]
[1765711713447,0.22017,89601.0,89600.0,1.74394889]
[1765711713651,0.22017,89601.0,89600.0,1.74494889]
[1765711713950,0.22017,89601.0,89600.0,0.13378889]
[1765711714152,0.22017,89601.0,89600.0,0.2312]
[1765711714347,0.22025461,89601.0,89600.0,0.002]
[1765711714547,0.22025461,89601.0,89600.0,0.12004]
[1765711715646,0.22025461,89601.0,89600.0,0.002]
[1765711716456,0.22017,89588.0,89587.0,1.5]
[1765711716658,0.58097,89588.0,89587.0,1.5]
[1765711717363,0.22017,89581.0,89580.0,0.24300961]
[1765711717961,0.0677,89585.0,89580.0,0.24300961]
[1765711717962,0.28787,89585.0,89584.0,0.2292]
[1765711719150,0.22033742,89589.0,89588.0,0.2292]
[1765711719855,0.00016742,89589.0,89588.0,0.2292]
[1765711720357,0.11289742,89589.0,89588.0,0.2312]
[1765711720752,0.00016742,89589.0,89588.0,0.2312]
[1765711721462,0.0677,89615.0,89600.0,0.2691]
[1765711721763,0.28787,89625.0,89624.0,0.2292]
[1765711723063,0.28787,89625.0,89624.0,0.2312]
[1765711723664,0.28787,89625.0,89624.0,0.002]
[1765711724062,0.22017,89617.0,89616.0,0.00016742]